[Event "Early-Titled-Tuesday-Blitz-February-06-2024"]
[Site "Chess.com"]
[Date "2024.02.06"]
[Round "1"]
[White "the_chess_child"]
[Black "Aash20"]
[Result "1-0"]
[WhiteElo "2898"]
[BlackElo "2493"]
[TimeControl "180+1"]
[EndTime "8:07:23 PST"]
[Termination "the_chess_child won by resignation"]

1. e4 {[%clk 0:03:00.9]} 1... c5 {[%clk 0:02:58]} 2. Nf3 {[%clk 0:03:01.2]} 2...
g6 {[%clk 0:02:57.1]} 3. g3 {[%clk 0:02:59.3]} 3... Nc6 {[%clk 0:02:56.3]} 4.
Bg2 {[%clk 0:02:59.4]} 4... Bg7 {[%clk 0:02:56.7]} 5. O-O {[%clk 0:02:59.5]}
5... d6 {[%clk 0:02:57]} 6. Re1 {[%clk 0:02:58.2]} 6... Bg4 {[%clk 0:02:54]} 7.
h3 {[%clk 0:02:56]} 7... Bxf3 {[%clk 0:02:54.1]} 8. Qxf3 {[%clk 0:02:56.1]} 8...
Nf6 {[%clk 0:02:54.7]} 9. d3 {[%clk 0:02:53.3]} 9... O-O {[%clk 0:02:53]} 10. c3
{[%clk 0:02:53.3]} 10... Rb8 {[%clk 0:02:52.6]} 11. a4 {[%clk 0:02:46.9]} 11...
a6 {[%clk 0:02:51.6]} 12. Qd1 {[%clk 0:02:46.3]} 12... b5 {[%clk 0:02:50.3]} 13.
axb5 {[%clk 0:02:45.9]} 13... axb5 {[%clk 0:02:50.7]} 14. Be3 {[%clk 0:02:37.7]}
14... b4 {[%clk 0:02:50.5]} 15. d4 {[%clk 0:02:19.2]} 15... bxc3 {[%clk
0:02:48.7]} 16. bxc3 {[%clk 0:02:20.1]} 16... cxd4 {[%clk 0:02:47.8]} 17. cxd4
{[%clk 0:02:21]} 17... Rc8 {[%clk 0:02:36.4]} 18. Na3 {[%clk 0:01:45.9]} 18...
Nd7 {[%clk 0:02:24.1]} 19. Rc1 {[%clk 0:01:44.2]} 19... Nb4 {[%clk 0:02:20.7]}
20. Qb3 {[%clk 0:01:38.5]} 20... Qa5 {[%clk 0:02:12.9]} 21. Nc4 {[%clk
0:01:31.2]} 21... Qb5 {[%clk 0:01:57.7]} 22. Bf1 {[%clk 0:01:31.3]} 22... Qb8
{[%clk 0:01:52.7]} 23. Rb1 {[%clk 0:01:25.7]} 23... Nc6 {[%clk 0:01:51.3]} 24.
Qa4 {[%clk 0:01:16.3]} 24... Qc7 {[%clk 0:01:47.9]} 25. d5 {[%clk 0:01:05.6]}
25... Nce5 {[%clk 0:01:46.3]} 26. Nxe5 {[%clk 0:01:05.6]} 26... Nxe5 {[%clk
0:01:45.4]} 27. Rec1 {[%clk 0:01:05.9]} 27... Qd7 {[%clk 0:01:40.1]} 28. Qxd7
{[%clk 0:01:00.5]} 28... Nxd7 {[%clk 0:01:39.5]} 29. Rxc8 {[%clk 0:00:59.6]}
29... Rxc8 {[%clk 0:01:39.9]} 30. Rb7 {[%clk 0:01:00]} 30... Rd8 {[%clk
0:01:39.7]} 31. Bb5 {[%clk 0:00:59.3]} 31... Nc5 {[%clk 0:01:36.5]} 32. Bxc5
{[%clk 0:00:54.1]} 32... dxc5 {[%clk 0:01:36]} 33. Rxe7 {[%clk 0:00:54.7]} 33...
Bd4 {[%clk 0:01:32.1]} 34. Kg2 {[%clk 0:00:51.2]} 34... Kf8 {[%clk 0:01:29.2]}
35. Rb7 {[%clk 0:00:50]} 35... Ra8 {[%clk 0:01:28.1]} 36. d6 {[%clk 0:00:48.7]}
36... Ra2 {[%clk 0:01:26.5]} 37. Rb8+ {[%clk 0:00:34.3]} 37... Kg7 {[%clk
0:01:25.8]} 38. d7 {[%clk 0:00:34.3]} 38... Rxf2+ {[%clk 0:01:23.2]} 39. Kh1
{[%clk 0:00:34.4]} 39... Bf6 {[%clk 0:01:21.8]} 40. d8=Q {[%clk 0:00:32.8]}
40... Bxd8 {[%clk 0:01:21.8]} 41. Rxd8 {[%clk 0:00:33.7]} 41... Rb2 {[%clk
0:01:20.8]} 42. Bc4 {[%clk 0:00:33.5]} 42... Rc2 {[%clk 0:01:20.6]} 43. Bd5
{[%clk 0:00:33.6]} 43... h5 {[%clk 0:01:17.6]} 44. Rd7 {[%clk 0:00:33.8]} 44...
Rf2 {[%clk 0:01:17.2]} 45. Kg1 {[%clk 0:00:33.9]} 45... Rf6 {[%clk 0:01:16.4]}
46. Rc7 {[%clk 0:00:34.5]} 46... Kf8 {[%clk 0:01:06.9]} 47. Rxc5 {[%clk
0:00:34.5]} 47... h4 {[%clk 0:01:02]} 48. gxh4 {[%clk 0:00:32.2]} 48... Rf4
{[%clk 0:01:00.4]} 49. Rc7 {[%clk 0:00:32.4]} 49... Kg7 {[%clk 0:00:58.7]} 50.
Kg2 {[%clk 0:00:32.6]} 50... Kf8 {[%clk 0:00:52.3]} 51. Kg3 {[%clk 0:00:32.8]}
51... Rf1 {[%clk 0:00:51.7]} 52. Kg4 {[%clk 0:00:32.8]} 52... Kg7 {[%clk
0:00:48.4]} 53. Rxf7+ {[%clk 0:00:31.9]} 53... Rxf7 {[%clk 0:00:47.5]} 54. Bxf7
{[%clk 0:00:32.8]} 54... Kxf7 {[%clk 0:00:48.2]} 55. Kg5 {[%clk 0:00:33.3]}
55... Kg7 {[%clk 0:00:48.5]} 56. e5 {[%clk 0:00:33.4]} 56... Kf7 {[%clk
0:00:48.8]} 57. e6+ {[%clk 0:00:33.8]} 57... Kxe6 {[%clk 0:00:49.3]} 58. Kxg6
{[%clk 0:00:34.4]} 1-0

[Event "Early-Titled-Tuesday-Blitz-February-06-2024"]
[Site "Chess.com"]
[Date "2024.02.06"]
[Round "1"]
[White "Elsa167"]
[Black "verrbaa"]
[Result "1-0"]
[WhiteElo "2890"]
[BlackElo "2490"]
[TimeControl "180+1"]
[EndTime "8:07:23 PST"]
[Termination "Elsa167 won on time"]

1. e4 {[%clk 0:03:00]} 1... c5 {[%clk 0:02:57.6]} 2. Nf3 {[%clk 0:02:59.1]} 2...
e6 {[%clk 0:02:57.2]} 3. d3 {[%clk 0:02:59]} 3... d5 {[%clk 0:02:55.3]} 4. Nbd2
{[%clk 0:02:58.8]} 4... Nc6 {[%clk 0:02:55.4]} 5. g3 {[%clk 0:02:58.8]} 5... Nf6
{[%clk 0:02:55.5]} 6. Bg2 {[%clk 0:02:59.3]} 6... g6 {[%clk 0:02:55.6]} 7. O-O
{[%clk 0:02:57.6]} 7... Bg7 {[%clk 0:02:55.8]} 8. Re1 {[%clk 0:02:55.9]} 8...
O-O {[%clk 0:02:55.3]} 9. c3 {[%clk 0:02:56]} 9... Qc7 {[%clk 0:02:49.2]} 10. h4
{[%clk 0:02:38.3]} 10... b6 {[%clk 0:02:27.3]} 11. a3 {[%clk 0:02:30.9]} 11...
a5 {[%clk 0:02:25.4]} 12. e5 {[%clk 0:02:20.9]} 12... Nd7 {[%clk 0:02:23.9]} 13.
d4 {[%clk 0:02:21.5]} 13... cxd4 {[%clk 0:02:12.7]} 14. cxd4 {[%clk 0:02:22.4]}
14... f6 {[%clk 0:02:12.1]} 15. exf6 {[%clk 0:02:15.8]} 15... Nxf6 {[%clk
0:02:12.3]} 16. b3 {[%clk 0:01:52.2]} 16... Bd7 {[%clk 0:01:46.3]} 17. Bb2
{[%clk 0:01:32.9]} 17... Ng4 {[%clk 0:01:37.5]} 18. Rc1 {[%clk 0:01:14.2]} 18...
Qd6 {[%clk 0:01:34.6]} 19. Bh3 {[%clk 0:00:55.2]} 19... Nxf2 {[%clk 0:00:32.8]}
20. Kxf2 {[%clk 0:00:54.7]} 20... Nxd4 {[%clk 0:00:33.2]} 21. Bxd4 {[%clk
0:00:54.2]} 21... Bxd4+ {[%clk 0:00:33]} 22. Kg2 {[%clk 0:00:54.7]} 22... Bg7
{[%clk 0:00:25.5]} 23. Nc4 {[%clk 0:00:41.4]} 23... Qe7 {[%clk 0:00:19.4]} 24.
Nxb6 {[%clk 0:00:33.8]} 24... Rae8 {[%clk 0:00:17.2]} 25. Nxd7 {[%clk
0:00:27.5]} 25... Qxd7 {[%clk 0:00:18.1]} 26. Ng5 {[%clk 0:00:26.9]} 26... Qd6
{[%clk 0:00:10]} 27. Bxe6+ {[%clk 0:00:19.6]} 27... Rxe6 {[%clk 0:00:06.5]} 28.
Nxe6 {[%clk 0:00:15.1]} 28... Rb8 {[%clk 0:00:02.7]} 29. Nxg7 {[%clk 0:00:14.9]}
29... Kxg7 {[%clk 0:00:03.6]} 30. Qd4+ {[%clk 0:00:13.7]} 30... Kh6 {[%clk
0:00:03.5]} 31. Qf4+ {[%clk 0:00:13.1]} 31... Qxf4 {[%clk 0:00:03.4]} 32. gxf4
{[%clk 0:00:14]} 32... Rxb3 {[%clk 0:00:03.7]} 33. Re5 {[%clk 0:00:11]} 33...
Rxa3 {[%clk 0:00:03.3]} 34. Rxd5 {[%clk 0:00:11]} 34... a4 {[%clk 0:00:03.3]}
35. Rc7 {[%clk 0:00:09.3]} 1-0

[Event "Early-Titled-Tuesday-Blitz-February-06-2024"]
[Site "Chess.com"]
[Date "2024.02.06"]
[Round "1"]
[White "cthulhuuu"]
[Black "Gennady_Kozlov"]
[Result "0-1"]
[WhiteElo "2385"]
[BlackElo "2705"]
[TimeControl "180+1"]
[EndTime "8:07:24 PST"]
[Termination "Gennady_Kozlov won on time"]

1. e4 {[%clk 0:03:00.2]} 1... e6 {[%clk 0:02:59.1]} 2. d3 {[%clk 0:03:00.4]}
2... d5 {[%clk 0:02:58.1]} 3. Nd2 {[%clk 0:03:01]} 3... Nf6 {[%clk 0:02:47.9]}
4. Ngf3 {[%clk 0:03:01.5]} 4... c5 {[%clk 0:02:45.1]} 5. g3 {[%clk 0:03:01.6]}
5... Nc6 {[%clk 0:02:43.2]} 6. Bg2 {[%clk 0:03:02]} 6... Be7 {[%clk 0:02:41.4]}
7. O-O {[%clk 0:03:02.3]} 7... O-O {[%clk 0:02:40]} 8. e5 {[%clk 0:03:03]} 8...
Nd7 {[%clk 0:02:36.2]} 9. Re1 {[%clk 0:03:03.9]} 9... Qc7 {[%clk 0:02:32]} 10.
Qe2 {[%clk 0:03:04.2]} 10... b5 {[%clk 0:02:29.7]} 11. h4 {[%clk 0:03:04]} 11...
a5 {[%clk 0:02:26.1]} 12. Nf1 {[%clk 0:03:04.2]} 12... Ba6 {[%clk 0:02:23.2]}
13. Bf4 {[%clk 0:03:03.2]} 13... b4 {[%clk 0:02:21.2]} 14. N1h2 {[%clk
0:03:00.4]} 14... c4 {[%clk 0:02:18.5]} 15. Rad1 {[%clk 0:02:52.9]} 15... cxd3
{[%clk 0:02:11.5]} 16. cxd3 {[%clk 0:02:53.8]} 16... b3 {[%clk 0:02:11.9]} 17.
a3 {[%clk 0:02:51]} 17... Bc5 {[%clk 0:02:08.1]} 18. Ng5 {[%clk 0:02:48.9]}
18... h6 {[%clk 0:02:07.3]} 19. Qh5 {[%clk 0:02:48.9]} 19... hxg5 {[%clk
0:01:59.1]} 20. hxg5 {[%clk 0:02:48.3]} 20... Ncxe5 {[%clk 0:01:59.2]} 21. d4
{[%clk 0:02:40]} 21... Bxd4 {[%clk 0:01:55.4]} 22. Rxd4 {[%clk 0:02:38]} 22...
f6 {[%clk 0:01:48.8]} 23. g6 {[%clk 0:02:29.6]} 23... Rfc8 {[%clk 0:01:44]} 24.
Qh7+ {[%clk 0:02:16.1]} 24... Kf8 {[%clk 0:01:43.9]} 25. Qh8+ {[%clk 0:02:15.7]}
25... Ke7 {[%clk 0:01:43.9]} 26. Qxg7+ {[%clk 0:02:14.6]} 26... Kd6 {[%clk
0:01:41.7]} 27. Ng4 {[%clk 0:01:12.3]} 27... Rg8 {[%clk 0:01:35.5]} 28. Qxf6
{[%clk 0:01:07.4]} 28... Nxf6 {[%clk 0:01:30.5]} 29. Bxe5+ {[%clk 0:01:07.5]}
29... Kc5 {[%clk 0:01:24.4]} 30. Rc1+ {[%clk 0:00:42.3]} 30... Bc4 {[%clk
0:01:23.3]} 31. Rdxc4+ {[%clk 0:00:38.8]} 31... dxc4 {[%clk 0:01:24.2]} 32. Bxc7
{[%clk 0:00:36.2]} 32... Nxg4 {[%clk 0:01:23.7]} 33. Bxa8 {[%clk 0:00:36.3]}
33... Rxa8 {[%clk 0:01:24.6]} 34. Re1 {[%clk 0:00:24.5]} 34... e5 {[%clk
0:01:20.3]} 35. Bxe5 {[%clk 0:00:23.5]} 35... Rg8 {[%clk 0:01:18.8]} 36. g7
{[%clk 0:00:22.3]} 36... Nxe5 {[%clk 0:01:18.7]} 37. Rxe5+ {[%clk 0:00:23.2]}
37... Kd4 {[%clk 0:01:19.4]} 38. Rg5 {[%clk 0:00:21.8]} 38... a4 {[%clk
0:01:17.6]} 39. Rg6 {[%clk 0:00:21.1]} 39... Kd3 {[%clk 0:01:15.2]} 40. Rc6
{[%clk 0:00:02.8]} 40... Rxg7 {[%clk 0:01:14]} 41. Kg2 {[%clk 0:00:03.2]} 41...
Re7 {[%clk 0:01:13.8]} 42. f4 {[%clk 0:00:03]} 42... Re2+ {[%clk 0:01:13.9]} 43.
Kf3 {[%clk 0:00:03.6]} 43... Rxb2 {[%clk 0:01:14.8]} 44. f5 {[%clk 0:00:03.9]}
44... Rb1 {[%clk 0:01:14.7]} 45. Kf2 {[%clk 0:00:04.2]} 45... b2 {[%clk
0:01:13.9]} 46. f6 {[%clk 0:00:04.5]} 46... Rf1+ {[%clk 0:01:13.7]} 47. Kxf1
{[%clk 0:00:05]} 47... b1=Q+ {[%clk 0:01:14.6]} 48. Kg2 {[%clk 0:00:05.3]} 48...
Qb2+ {[%clk 0:01:13.2]} 49. Kh3 {[%clk 0:00:04.8]} 49... Qe5 {[%clk 0:01:11.8]}
50. g4 {[%clk 0:00:03.7]} 50... Qe3+ {[%clk 0:01:06.8]} 51. Kh4 {[%clk
0:00:03.3]} 51... c3 {[%clk 0:01:06.5]} 52. g5 {[%clk 0:00:01.6]} 52... Qe4+
{[%clk 0:01:06]} 53. Kh5 {[%clk 0:00:01.8]} 53... Qxc6 {[%clk 0:01:06.9]} 54. f7
{[%clk 0:00:02.2]} 54... Qc5 {[%clk 0:01:05.8]} 0-1

[Event "Early-Titled-Tuesday-Blitz-February-06-2024"]
[Site "Chess.com"]
[Date "2024.02.06"]
[Round "1"]
[White "Chessdude1987"]
[Black "Zavgorodniy_Sergiy"]
[Result "0-1"]
[WhiteElo "2271"]
[BlackElo "2608"]
[TimeControl "180+1"]
[EndTime "8:07:25 PST"]
[Termination "Zavgorodniy_Sergiy won on time"]

1. e4 {[%clk 0:03:00.9]} 1... e5 {[%clk 0:03:00]} 2. Nf3 {[%clk 0:03:00.4]} 2...
d6 {[%clk 0:03:00.5]} 3. d4 {[%clk 0:02:59.7]} 3... exd4 {[%clk 0:03:01.1]} 4.
Nxd4 {[%clk 0:03:00]} 4... Nf6 {[%clk 0:03:01.1]} 5. Nc3 {[%clk 0:02:59.8]} 5...
Be7 {[%clk 0:03:01.3]} 6. Be2 {[%clk 0:02:51.8]} 6... O-O {[%clk 0:03:00.5]} 7.
O-O {[%clk 0:02:51.7]} 7... Re8 {[%clk 0:02:56.8]} 8. Re1 {[%clk 0:02:51.6]}
8... c6 {[%clk 0:02:47.4]} 9. a4 {[%clk 0:02:50.3]} 9... a5 {[%clk 0:02:44.7]}
10. f4 {[%clk 0:02:42.3]} 10... Na6 {[%clk 0:02:41.8]} 11. Kh1 {[%clk
0:02:40.9]} 11... Bf8 {[%clk 0:02:41.2]} 12. Bf3 {[%clk 0:02:40.9]} 12... Nb4
{[%clk 0:02:38.3]} 13. Be3 {[%clk 0:02:33.9]} 13... g6 {[%clk 0:02:33.9]} 14.
Qd2 {[%clk 0:02:26.1]} 14... Qc7 {[%clk 0:02:29.2]} 15. Rad1 {[%clk 0:02:25]}
15... Bg4 {[%clk 0:02:26]} 16. Bxg4 {[%clk 0:02:17.3]} 16... Nxg4 {[%clk
0:02:26.9]} 17. Bg1 {[%clk 0:02:17.3]} 17... Rad8 {[%clk 0:02:20.9]} 18. h3
{[%clk 0:02:16.9]} 18... Nf6 {[%clk 0:02:20.1]} 19. g4 {[%clk 0:02:17]} 19...
Qc8 {[%clk 0:02:14.8]} 20. Qg2 {[%clk 0:02:13.5]} 20... Bg7 {[%clk 0:02:10.1]}
21. Rd2 {[%clk 0:02:04.8]} 21... Nd7 {[%clk 0:01:54.4]} 22. Rde2 {[%clk
0:02:04]} 22... Nc5 {[%clk 0:01:52.4]} 23. Nf3 {[%clk 0:01:10.6]} 23... Ne6
{[%clk 0:01:47.8]} 24. Qg3 {[%clk 0:01:08.4]} 24... c5 {[%clk 0:01:35.2]} 25. e5
{[%clk 0:01:02.1]} 25... d5 {[%clk 0:01:28]} 26. f5 {[%clk 0:01:02]} 26... Nd4
{[%clk 0:01:28.5]} 27. Nxd4 {[%clk 0:00:56.8]} 27... cxd4 {[%clk 0:01:29.4]} 28.
Nb5 {[%clk 0:00:56.6]} 28... d3 {[%clk 0:01:14.9]} 29. cxd3 {[%clk 0:00:54.2]}
29... d4 {[%clk 0:01:15.2]} 30. f6 {[%clk 0:00:51.3]} 30... Bf8 {[%clk 0:01:14]}
31. Nxd4 {[%clk 0:00:49.9]} 31... Nc6 {[%clk 0:01:07.3]} 32. Nf5 {[%clk
0:00:41.9]} 32... Qe6 {[%clk 0:00:56.5]} 33. d4 {[%clk 0:00:39.1]} 33... Qd5+
{[%clk 0:00:49.4]} 34. Kh2 {[%clk 0:00:39.1]} 34... Kh8 {[%clk 0:00:46.6]} 35.
Nh4 {[%clk 0:00:34.9]} 35... Nxd4 {[%clk 0:00:44.3]} 36. Rd2 {[%clk 0:00:32.4]}
36... Qc4 {[%clk 0:00:38.3]} 37. Red1 {[%clk 0:00:28]} 37... Ne6 {[%clk
0:00:35.8]} 38. Rxd8 {[%clk 0:00:23.6]} 38... Nxd8 {[%clk 0:00:35.9]} 39. Rxd8
{[%clk 0:00:23.6]} 39... Rxd8 {[%clk 0:00:35.5]} 40. Be3 {[%clk 0:00:23.3]}
40... Qe2+ {[%clk 0:00:34.6]} 41. Ng2 {[%clk 0:00:23.4]} 41... Qxb2 {[%clk
0:00:33.7]} 42. g5 {[%clk 0:00:22.5]} 42... Qb3 {[%clk 0:00:32.9]} 43. h4 {[%clk
0:00:20.9]} 43... Qd1 {[%clk 0:00:30.8]} 44. e6 {[%clk 0:00:16.8]} 44... fxe6
{[%clk 0:00:31.7]} 45. Qe5 {[%clk 0:00:15]} 45... Bd6 {[%clk 0:00:30.8]} 0-1

[Event "Early-Titled-Tuesday-Blitz-February-06-2024"]
[Site "Chess.com"]
[Date "2024.02.06"]
[Round "1"]
[White "FoxOnTheRun97"]
[Black "Iunusovnuriddin"]
[Result "1-0"]
[WhiteElo "2628"]
[BlackElo "2305"]
[TimeControl "180+1"]
[EndTime "8:07:27 PST"]
[Termination "FoxOnTheRun97 won by resignation"]

1. d4 {[%clk 0:03:00.9]} 1... Nf6 {[%clk 0:02:54.6]} 2. Bg5 {[%clk 0:03:00.6]}
2... Ne4 {[%clk 0:02:51.3]} 3. h4 {[%clk 0:03:00.4]} 3... c5 {[%clk 0:02:32.5]}
4. d5 {[%clk 0:03:00.1]} 4... h6 {[%clk 0:02:24.6]} 5. Bc1 {[%clk 0:02:51.8]}
5... d6 {[%clk 0:02:22.9]} 6. Nd2 {[%clk 0:02:49]} 6... Nxd2 {[%clk 0:02:20.1]}
7. Bxd2 {[%clk 0:02:48.9]} 7... b5 {[%clk 0:02:18.3]} 8. e4 {[%clk 0:02:37.9]}
8... a6 {[%clk 0:02:13.9]} 9. a4 {[%clk 0:02:36.2]} 9... bxa4 {[%clk 0:02:11.2]}
10. Rxa4 {[%clk 0:02:29.8]} 10... e6 {[%clk 0:02:10.8]} 11. Bd3 {[%clk
0:02:15.9]} 11... Be7 {[%clk 0:02:05.8]} 12. h5 {[%clk 0:02:05.6]} 12... exd5
{[%clk 0:01:50.4]} 13. exd5 {[%clk 0:02:04.8]} 13... Nd7 {[%clk 0:01:51]} 14.
Ne2 {[%clk 0:01:48.8]} 14... Nb6 {[%clk 0:01:49.4]} 15. Ra3 {[%clk 0:01:35.7]}
15... c4 {[%clk 0:01:48.6]} 16. Be4 {[%clk 0:01:33.1]} 16... f5 {[%clk
0:01:47.4]} 17. Bf3 {[%clk 0:01:24.5]} 17... Bf6 {[%clk 0:01:47.5]} 18. Bc3
{[%clk 0:01:23.1]} 18... O-O {[%clk 0:01:46.9]} 19. O-O {[%clk 0:01:20.2]} 19...
Bb7 {[%clk 0:01:43.2]} 20. Bd4 {[%clk 0:01:17.6]} 20... Nd7 {[%clk 0:01:32.3]}
21. Nf4 {[%clk 0:01:15.6]} 21... Bxd4 {[%clk 0:01:20.7]} 22. Qxd4 {[%clk
0:01:16.5]} 22... Nc5 {[%clk 0:01:21.6]} 23. Qxc4 {[%clk 0:01:10.6]} 23... Qf6
{[%clk 0:01:19.3]} 24. b4 {[%clk 0:01:10.3]} 24... Nd7 {[%clk 0:01:19.3]} 25.
Qc7 {[%clk 0:01:06.8]} 25... Bc8 {[%clk 0:01:08]} 26. Ne6 {[%clk 0:01:02.5]}
26... Rf7 {[%clk 0:01:00.3]} 27. Qxd6 {[%clk 0:00:59.4]} 27... Ne5 {[%clk
0:01:00.4]} 28. Be2 {[%clk 0:00:53]} 28... Bb7 {[%clk 0:00:39.3]} 29. Rg3 {[%clk
0:00:51.7]} 29... Rd7 {[%clk 0:00:37.5]} 30. Qb6 {[%clk 0:00:44.5]} 30... Bxd5
{[%clk 0:00:37.1]} 31. f4 {[%clk 0:00:30.5]} 31... Nc4 {[%clk 0:00:21.9]} 32.
Bxc4 {[%clk 0:00:26.7]} 32... Bxc4 {[%clk 0:00:21.9]} 33. Re1 {[%clk 0:00:27.3]}
33... Re8 {[%clk 0:00:20.3]} 34. Rg6 {[%clk 0:00:27.9]} 34... Qh4 {[%clk
0:00:13.5]} 35. Qf2 {[%clk 0:00:24.1]} 35... Qxf2+ {[%clk 0:00:13.3]} 36. Kxf2
{[%clk 0:00:25]} 36... Rde7 {[%clk 0:00:12.6]} 37. Nxg7 {[%clk 0:00:20]} 37...
Re2+ {[%clk 0:00:11.5]} 38. Rxe2 {[%clk 0:00:17.6]} 38... Rxe2+ {[%clk
0:00:12.4]} 39. Kf3 {[%clk 0:00:18.2]} 39... Kf7 {[%clk 0:00:12.6]} 40. Nxf5
{[%clk 0:00:18.3]} 40... Rxc2 {[%clk 0:00:13.2]} 41. Nd6+ {[%clk 0:00:17.1]}
41... Ke7 {[%clk 0:00:12.6]} 42. Nxc4 {[%clk 0:00:17.5]} 42... Rxc4 {[%clk
0:00:13.5]} 43. Rxa6 {[%clk 0:00:17.9]} 1-0

[Event "Early-Titled-Tuesday-Blitz-February-06-2024"]
[Site "Chess.com"]
[Date "2024.02.06"]
[Round "1"]
[White "FM_VS99"]
[Black "arnash_bauyrzhan"]
[Result "1-0"]
[WhiteElo "2602"]
[BlackElo "2254"]
[TimeControl "180+1"]
[EndTime "8:07:27 PST"]
[Termination "FM_VS99 won by resignation"]

1. d4 {[%clk 0:03:00.9]} 1... d5 {[%clk 0:02:59.1]} 2. Nf3 {[%clk 0:03:01.2]}
2... Nf6 {[%clk 0:02:57.9]} 3. g3 {[%clk 0:03:00.4]} 3... e6 {[%clk 0:02:58.2]}
4. Bg2 {[%clk 0:03:01]} 4... Be7 {[%clk 0:02:58.5]} 5. O-O {[%clk 0:03:01.6]}
5... O-O {[%clk 0:02:58.7]} 6. c4 {[%clk 0:03:01.9]} 6... dxc4 {[%clk
0:02:58.4]} 7. Qc2 {[%clk 0:03:02.2]} 7... a6 {[%clk 0:02:58.6]} 8. a4 {[%clk
0:03:02.5]} 8... Bd7 {[%clk 0:02:58.3]} 9. Qxc4 {[%clk 0:03:02.5]} 9... Bc6
{[%clk 0:02:58.4]} 10. Bf4 {[%clk 0:02:59.9]} 10... Nbd7 {[%clk 0:02:57.3]} 11.
Nc3 {[%clk 0:02:48]} 11... Bd6 {[%clk 0:02:57.1]} 12. Rfd1 {[%clk 0:02:35]}
12... Bxf4 {[%clk 0:02:33.3]} 13. gxf4 {[%clk 0:02:35.9]} 13... Bd5 {[%clk
0:02:28]} 14. Qd3 {[%clk 0:02:29.1]} 14... Bxf3 {[%clk 0:02:26.1]} 15. Bxf3
{[%clk 0:02:27.4]} 15... c6 {[%clk 0:02:25.8]} 16. e4 {[%clk 0:02:06.5]} 16...
Qe7 {[%clk 0:02:17.2]} 17. Qc4 {[%clk 0:02:00.8]} 17... Rfd8 {[%clk 0:02:11.3]}
18. b4 {[%clk 0:01:57.4]} 18... Rac8 {[%clk 0:02:03.9]} 19. a5 {[%clk
0:01:55.4]} 19... Nf8 {[%clk 0:01:51.9]} 20. Ne2 {[%clk 0:01:28.6]} 20... Ng6
{[%clk 0:01:49.7]} 21. Ra3 {[%clk 0:01:26.1]} 21... e5 {[%clk 0:01:37.5]} 22. f5
{[%clk 0:01:01.5]} 22... Nh4 {[%clk 0:01:37.1]} 23. Ng3 {[%clk 0:00:48.2]} 23...
exd4 {[%clk 0:01:19.1]} 24. Rxd4 {[%clk 0:00:47.5]} 24... Qe5 {[%clk 0:01:15.7]}
25. Rxd8+ {[%clk 0:00:42.2]} 25... Rxd8 {[%clk 0:01:16.6]} 26. Be2 {[%clk
0:00:34.6]} 26... Rd4 {[%clk 0:00:59.5]} 27. Qc5 {[%clk 0:00:23.8]} 27... Qxc5
{[%clk 0:00:36.2]} 28. bxc5 {[%clk 0:00:24.7]} 28... Nxe4 {[%clk 0:00:35.9]} 29.
Re3 {[%clk 0:00:24.1]} 29... f6 {[%clk 0:00:13.6]} 30. Rxe4 {[%clk 0:00:19.7]}
30... Rxe4 {[%clk 0:00:13.1]} 31. Nxe4 {[%clk 0:00:20.4]} 31... Nxf5 {[%clk
0:00:13.4]} 32. Bg4 {[%clk 0:00:20.4]} 32... Nd4 {[%clk 0:00:12.4]} 33. Bc8
{[%clk 0:00:20.5]} 33... Nb3 {[%clk 0:00:12]} 34. Bxb7 {[%clk 0:00:18.7]} 34...
Nxa5 {[%clk 0:00:12.3]} 35. Bxa6 {[%clk 0:00:19.2]} 35... Nb3 {[%clk 0:00:11.3]}
36. Bc4+ {[%clk 0:00:18.8]} 1-0

[Event "Early-Titled-Tuesday-Blitz-February-06-2024"]
[Site "Chess.com"]
[Date "2024.02.06"]
[Round "1"]
[White "Predo63"]
[Black "tptagain"]
[Result "0-1"]
[WhiteElo "2500"]
[BlackElo "2931"]
[TimeControl "180+1"]
[EndTime "8:07:28 PST"]
[Termination "tptagain won by resignation"]

1. d4 {[%clk 0:03:00.9]} 1... d5 {[%clk 0:02:58.1]} 2. Bf4 {[%clk 0:03:00.9]}
2... c5 {[%clk 0:02:57.6]} 3. c3 {[%clk 0:03:00.8]} 3... Nc6 {[%clk 0:02:57.3]}
4. e3 {[%clk 0:03:01.3]} 4... e6 {[%clk 0:02:52.5]} 5. Nd2 {[%clk 0:03:01.5]}
5... Nf6 {[%clk 0:02:49.1]} 6. Ngf3 {[%clk 0:03:01.2]} 6... cxd4 {[%clk
0:02:49.2]} 7. cxd4 {[%clk 0:03:00.8]} 7... Be7 {[%clk 0:02:45.7]} 8. Be2 {[%clk
0:03:00.4]} 8... Nh5 {[%clk 0:02:45.1]} 9. Bg3 {[%clk 0:02:59.9]} 9... O-O
{[%clk 0:02:44.3]} 10. O-O {[%clk 0:02:59.4]} 10... Nxg3 {[%clk 0:02:42.3]} 11.
hxg3 {[%clk 0:03:00.3]} 11... Bd7 {[%clk 0:02:42.2]} 12. a3 {[%clk 0:03:00]}
12... Rc8 {[%clk 0:02:41.8]} 13. Rc1 {[%clk 0:03:00.2]} 13... h6 {[%clk
0:02:40.5]} 14. Qb3 {[%clk 0:02:57.3]} 14... Na5 {[%clk 0:02:33.5]} 15. Qa2
{[%clk 0:02:57]} 15... b5 {[%clk 0:02:30.3]} 16. b3 {[%clk 0:02:38]} 16... Bd6
{[%clk 0:02:15.8]} 17. a4 {[%clk 0:02:25.6]} 17... b4 {[%clk 0:02:02.8]} 18. Qb2
{[%clk 0:02:23.2]} 18... Qb6 {[%clk 0:01:48.7]} 19. Ne5 {[%clk 0:02:20.4]} 19...
Bxe5 {[%clk 0:01:30.2]} 20. dxe5 {[%clk 0:02:19.9]} 20... Nb7 {[%clk 0:01:30.5]}
21. Nf3 {[%clk 0:02:13]} 21... Nc5 {[%clk 0:01:30.4]} 22. Nd4 {[%clk 0:02:12.2]}
22... Ne4 {[%clk 0:01:30.3]} 23. Rxc8 {[%clk 0:02:06.2]} 23... Rxc8 {[%clk
0:01:29.9]} 24. Rc1 {[%clk 0:02:06.3]} 24... Nc3 {[%clk 0:01:29]} 25. Bd3 {[%clk
0:02:02.4]} 25... Qc7 {[%clk 0:01:25.4]} 26. Kf1 {[%clk 0:01:54.9]} 26... Qxe5
{[%clk 0:01:24.2]} 27. Qd2 {[%clk 0:01:44.4]} 27... Qh5 {[%clk 0:01:17.5]} 28.
Kg1 {[%clk 0:01:38.9]} 28... e5 {[%clk 0:01:16.4]} 29. Nb5 {[%clk 0:01:24.1]}
29... Bxb5 {[%clk 0:01:07.3]} 30. axb5 {[%clk 0:01:24.2]} 30... Qg5 {[%clk
0:00:58]} 31. Ra1 {[%clk 0:01:22.7]} 31... Qe7 {[%clk 0:00:58.1]} 32. Bf5 {[%clk
0:01:20.5]} 32... Rc7 {[%clk 0:00:57.9]} 33. b6 {[%clk 0:01:14.3]} 33... Rb7
{[%clk 0:00:53.3]} 34. bxa7 {[%clk 0:01:10.7]} 34... Rxa7 {[%clk 0:00:54.2]} 35.
Rxa7 {[%clk 0:01:06.6]} 35... Qxa7 {[%clk 0:00:55.1]} 36. Qd3 {[%clk 0:01:06.8]}
36... Qb6 {[%clk 0:00:49.1]} 37. Bd7 {[%clk 0:01:02.1]} 37... g6 {[%clk
0:00:47.7]} 38. Bg4 {[%clk 0:00:49]} 38... Kg7 {[%clk 0:00:46.8]} 39. Bh3 {[%clk
0:00:41.7]} 39... Qb5 {[%clk 0:00:41.1]} 40. Qd2 {[%clk 0:00:38.7]} 40... Qe2
{[%clk 0:00:36.1]} 41. Qc1 {[%clk 0:00:37.9]} 41... f5 {[%clk 0:00:30]} 42. Qa1
{[%clk 0:00:33.4]} 42... Qa2 {[%clk 0:00:22.1]} 43. Qxa2 {[%clk 0:00:26.8]}
43... Nxa2 {[%clk 0:00:23]} 44. g4 {[%clk 0:00:26.4]} 44... Kf6 {[%clk
0:00:23.6]} 45. gxf5 {[%clk 0:00:26.6]} 45... gxf5 {[%clk 0:00:24.5]} 46. g4
{[%clk 0:00:27]} 46... Nc1 {[%clk 0:00:23.5]} 47. gxf5 {[%clk 0:00:27.1]} 47...
Nxb3 {[%clk 0:00:23.9]} 48. Kf1 {[%clk 0:00:27.6]} 48... Nc5 {[%clk 0:00:22]}
49. Ke2 {[%clk 0:00:28.1]} 49... Ne4 {[%clk 0:00:20.6]} 50. f3 {[%clk
0:00:28.3]} 50... b3 {[%clk 0:00:20.9]} 51. Kd1 {[%clk 0:00:22]} 51... Nf2+
{[%clk 0:00:21.2]} 0-1